[Event "Swedish Championship O65 2022"]
[Site "Uppsala"]
[Date "2022.07.06"]
[Round "5.3"]
[White "Alquist, Erik"]
[Black "Malmdin, Nils-Ake"]
[Result "1-0"]
[ECO "E11"]
[WhiteElo "1968"]
[BlackElo "2124"]
[Annotator "TA"]
[PlyCount "79"]
[EventDate "2022.07.01"]
[EventType "tourn"]
[EventCountry "SWE"]
[SourceTitle "playchess.com"]
[Source "ChessBase"]
[SourceQuality "1"]
[TimeControl "40/5400+30:1800+30"]

{[%evp 10,79,35,31,57,43,124,109,222,199,203,200,297,297,290,261,254,228,235,202,366,266,248,155,187,188,225,212,221,175,246,250,243,245,244,132,147,179,175,153,162,172,245,162,714,676,687,617,708,670,698,659,752,752,758,758,1583,1606,1401,1270,10529,12843,6050,6046,5601,5037,29976,29977,29977,29977,29977,29979]} 1. d4 {[%emt 0:00:08]} Nf6 {[%emt 0:02:45]} 2. c4 {[%emt 0:00:08]} e6 {[%emt 0:01:17]} 3. Nf3 {[%emt 0:00:10]} Bb4+ {[%emt 0:03:49]} 4. Bd2 {[%emt 0:00:37]} c5 {[%emt 0:02:33][%cal Bc7c5,Bc5b4][%mdl 32]} 5. Bxb4 {[%emt 0:00:30]} cxb4 {[%emt 0:00:12]} 6. a3 {[%emt 0:00:08]} Qa5 {[%emt 0:11:14] E11: Bogo-Indian.} 7. Nbd2 {[%emt 0:07:17] [#]} Na6 $146 {[%emt 0:08:46]} ({Black should try} 7... O-O $14) ({Predecessor:} 7... d6 8. e3 Nc6 9. Bd3 bxa3 10. Rxa3 Qb6 11. O-O O-O 12. Qa1 Nb4 13. Rc1 Bd7 14. Bf1 {1-0 (38) Secheres,A (2363)-Pap,M (2372) Novi Sad 2022}) 8. c5 {[%emt 0:09:35] Hoping for Nc4.} d5 {[%emt 0:01:27] Prevents Nc4.} (8... bxa3 $16 9. Rxa3 Qc7) 9. cxd6 $18 {[%emt 0:01:20]} bxa3 {[%emt 0:07:04]} 10. Rxa3 {[%emt 0:03:11]} Qb4 {[%emt 0:02:44] [#]} (10... Qd8 $142 11. e4 Bd7 12. Bxa6 bxa6) 11. e4 $1 {[%emt 0:09:51][%cal Be2e4,Be4e5][%mdl 32]} O-O {[%emt 0:01:44]} 12. e5 {[%emt 0:03:01]} Nd5 {[%emt 0:01:10]} 13. Rb3 {[%emt 0:03:58]} Qa5 {[%emt 0:00:04]} 14. Bd3 {[%emt 0:01:57][%cal Od3h7] Bxh7+! is the strong threat.} f5 $2 {[%emt 0:00:41]} (14... Nab4 {was called for.} 15. Bc4 Bd7) 15. O-O {[%emt 0:02:04] [#] Strongly threatening Rb5.} Nab4 {[%emt 0:00:56]} 16. Bb1 {[%emt 0:01:55]} Qd8 {[%emt 0:01:53]} 17. Nc4 {[%emt 0:04:00]} Bd7 {[%emt 0:00:52]} 18. Qd2 {[%emt 0:00:53]} a5 {[%emt 0:00:26]} 19. Rc1 {[%emt 0:01:13]} h6 {[%emt 0:06:09]} (19... Rc8 {was necessary.} 20. Ne3 Rxc1+ 21. Qxc1 Qa8) 20. Ne3 {[%emt 0:03:18]} b6 {[%emt 0:12:09]} 21. Nxd5 {[%emt 0:01:31]} Nxd5 {[%emt 0:00:20]} 22. Ne1 {[%emt 0:02:41]} ({Better is} 22. Ra3 $18) 22... Qg5 $16 {[%emt 0:04:37]} 23. Qxg5 {[%emt 0:16:57]} hxg5 {[%emt 0:00:11]} 24. Rd3 {[%emt 0:02:04][%cal Bb3d3,Bd3d1,Bd1c1][%mdl 32]} Rfc8 {[%emt 0:04:20]} 25. Rdd1 {[%emt 0:00:33]} Ba4 {[%emt 0:02:42]} (25... g4 {was worth a try.} 26. Ba2 Nb4) 26. Bc2 {[%emt 0:00:21][%cal Bb1c2,Bc2a4,Ba4b5][%mdl 32]} Nf4 $2 {[%emt 0:01:14]} (26... Bxc2 27. Nxc2 (27. Rxc2 Rxc2 28. Nxc2 Kf7 $14) 27... Kf7) 27. Bxa4 $18 {[%emt 0:03:31]} Rxc1 {[%emt 0:00:46]} 28. Rxc1 {[%emt 0:00:06] Threatens to win with Kf1.} Ne2+ {[%emt 0:00:31]} 29. Kf1 {[%emt 0:00:05]} Nxc1 {[%emt 0:00:07][%mdl 4096] Endgame KRN-KBN} 30. Nf3 {[%emt 0:00:20]} b5 {[%emt 0:14:37]} 31. Bxb5 {[%emt 0:02:01]} Rb8 {[%emt 0:01:11]} 32. Bc4 {[%emt 0:01:09]} Rxb2 {[%emt 0:01:29]} 33. d7 {[%emt 0:00:18]} Rb8 {[%emt 0:00:17]} 34. Nxg5 {[%emt 0:00:31]} Kf8 {[%emt 0:02:05]} 35. Nxe6+ {[%emt 0:01:22]} Ke7 {[%emt 0:00:09]} 36. d8=Q+ {[%emt 0:00:43]} Rxd8 {[%emt 0:00:14]} 37. Nxd8 {[%emt 0:00:03] White wants to mate with Nc6+.} Kxd8 {[%emt 0:00:12]} 38. Ke1 {[%emt 0:00:25] White mates.} a4 {[%emt 0:00:13]} 39. Kd1 {[%emt 0:00:25]} Nb3 {[%emt 0:00:10]} 40. Bxb3 {[%emt 0:00:28] Weighted Error Value: White=0.18 (very precise) /Black=0.51} 1-0

[Event "Swedish Championship O65 2022"]
[Site "Uppsala"]
[Date "2022.07.06"]
[Round "5.4"]
[White "Westin, Ake"]
[Black "Bergstrom, Rolf"]
[Result "1/2-1/2"]
[ECO "A03"]
[WhiteElo "1994"]
[BlackElo "2202"]
[Annotator "TA"]
[PlyCount "74"]
[EventDate "2022.07.01"]
[EventType "tourn"]
[EventCountry "SWE"]
[SourceTitle "playchess.com"]
[Source "ChessBase"]
[SourceQuality "1"]
[TimeControl "40/5400+30:1800+30"]

{[%evp 15,74,-35,-19,-48,0,-13,0,0,27,0,-10,-8,0,0,142,-139,-138,-150,-112,-261,293,-93,-90,-87,-75,-75,-78,-79,-87,-83,-76,-149,-151,-220,-104,-106,-24,-53,-46,-47,-55,-52,-55,-131,-136,-128,-133,-122,-108,-137,-157,-129,-98,-135,0,0,0,0,0,0,0]} 1. f4 {[%emt 0:00:10]} Nf6 {[%emt 0:01:34]} 2. Nf3 {[%emt 0:00:38]} g6 {[%emt 0:00:53]} 3. d3 {[%emt 0:02:22]} d5 {[%emt 0:01:00]} 4. e3 {[%emt 0:00:14]} Bg7 {[%emt 0:00:47]} 5. Be2 {[%emt 0:00:15]} O-O {[%emt 0:00:22]} 6. O-O {[%emt 0:00:32]} c5 {[%emt 0:04:31]} 7. Qe1 {[%emt 0:03:38]} Nc6 {[%emt 0:01:00]} 8. a4 {[%emt 0:01:36]} Qc7 {[%emt 0:06:15]} 9. Qh4 {[%emt 0:02:21] A03: Bird's Opening with 1...d5.} e5 {[%emt 0:04:27]} (9... a6 $15) 10. e4 {[%emt 0:03:29]} dxe4 {[%emt 0:07:09]} 11. dxe4 {[%emt 0:00:53]} Bg4 {[%emt 0:15:55]} 12. f5 {[%emt 0:10:59]} gxf5 {[%emt 0:14:10]} 13. Bh6 $1 {[%emt 0:12:19] [#] Strongly threatening Bxg7.} Bxh6 $146 {[%emt 0:05:39]} (13... fxe4 $2 14. Bxg7 Kxg7 15. Qg5+ Kh8 16. Qxf6+ Kg8 17. Nh4 $1 $18) ({Predecessor:} 13... Nxe4 14. Bxg7 Kxg7 15. Ng5 Nxg5 16. Qxg5+ Kh8 17. Qf6+ Kg8 18. Bxg4 fxg4 19. Rf5 Ne7 {1-0 (29) Bohn,T (2332)-Dillmann,M (2111) Germany 2016}) 14. Qxh6 {[%emt 0:01:20]} Qd6 {[%emt 0:16:04] [#]} (14... Nxe4 $11 15. Ng5 Nxg5 16. Qxg5+ Kh8 17. Qf6+ Kg8 18. Qg5+ Kh8 19. Qf6+ Kg8 20. Qg5+) 15. Rd1 $2 {[%emt 0:07:20][%mdl 8192]} (15. Ng5 $1 $16 {is necessary to keep the advantage.} Bxe2 16. Nc3) 15... Nd4 $17 {[%emt 0:03:54]} 16. Nxd4 {[%emt 0:12:33]} Bxe2 {[%emt 0:02:15]} ({Weaker is} 16... exd4 17. Bxg4 fxg4 18. Qg5+ Kh8 19. e5 $17) 17. Rd3 {[%emt 0:01:05]} Nxe4 $4 {[%emt 0:03:07][%mdl 8192]} 18. Rg3+ {[%emt 0:02:59] Chess con chili.} (18. Qxd6 $18 Nxd6 19. Nxe2) 18... Bg4 {[%emt 0:00:04]} 19. Qxd6 {[%emt 0:04:14]} Nxd6 {[%emt 0:00:06][%cal Be4d6,Bd6f5,Bf5d4][%mdl 32]} 20. Nxf5 {[%emt 0:01:03][%mdl 64] Remove Defender} Nxf5 {[%emt 0:00:05]} 21. Rxg4+ {[%emt 0:00:17]} Kh8 {[%emt 0:01:53] Threatens to win with ...Ne3.} 22. Nd2 {[%emt 0:02:28]} f6 {[%emt 0:03:41] Inhibits Rg5.} 23. Ra3 {[%emt 0:03:56]} (23. Nc4 $142) 23... Rad8 $36 {[%emt 0:01:09][%mdl 2048] Keeping White busy.} 24. Nc4 {[%emt 0:00:45]} (24. Ne4 $17) 24... Rd4 {[%emt 0:01:16]} (24... Rd1+ $19 {and Black stays clearly on top.} 25. Kf2 Rc1) 25. Rxd4 {[%emt 0:00:41]} Nxd4 {[%emt 0:00:06][%mdl 4096] Endgame KRN-KRN} (25... cxd4 $17 26. Rf3 Nh4) 26. Nd6 {[%emt 0:01:37] Prevents Rc8.} b6 {[%emt 0:02:01]} ({But not} 26... Nxc2 27. Rc3 Nd4 28. Rxc5 $11) 27. c3 {[%emt 0:02:55]} Nc6 {[%emt 0:00:07]} 28. Ra1 {[%emt 0:00:18]} Kg7 {[%emt 0:01:06]} 29. g4 {[%emt 0:02:18]} (29. Rf1 $1 $15) 29... Rd8 {[%emt 0:00:24]} 30. Ne4 {[%emt 0:00:26] [#]} Na5 $1 {[%emt 0:02:46]} 31. Rf1 {[%emt 0:02:27]} Nc4 {[%emt 0:00:07]} 32. Nxf6 {[%emt 0:01:13]} Nxb2 {[%emt 0:00:11]} 33. Nh5+ {[%emt 0:01:07]} Kg8 {[%emt 0:00:44]} 34. Rf5 {[%emt 0:02:00]} Nd3 {[%emt 0:01:10]} (34... Nxa4 $17 35. Nf6+ Kg7 36. Nh5+ Kg6) 35. Nf6+ $11 {[%emt 0:01:32] The position is equal.} Kg7 {[%emt 0:00:22]} 36. Nh5+ {[%emt 0:00:52]} Kg8 {[%emt 0:00:16]} 37. Nf6+ {[%emt 0:00:26]} Kg7 {[%emt 0:01:36] Weighted Error Value: White=0.50/Black=0.56} 1/2-1/2

[Event "Swedish Championship O65 2022"]
[Site "Uppsala"]
[Date "2022.07.06"]
[Round "5.5"]
[White "Marttala, Thomas"]
[Black "Hedin, Gunnar"]
[Result "1/2-1/2"]
[ECO "C17"]
[WhiteElo "2164"]
[BlackElo "2051"]
[Annotator "TA"]
[PlyCount "50"]
[EventDate "2022.07.01"]
[EventType "tourn"]
[EventCountry "SWE"]
[SourceTitle "playchess.com"]
[Source "ChessBase"]
[SourceQuality "1"]
[TimeControl "40/5400+30:1800+30"]

{[%evp 16,50,14,11,34,14,43,0,82,79,95,-11,-2,-2,-2,-2,-1,-3,-5,-13,-7,-10,0,0,13,13,62,62,62,62,62,62,96,93,83,70,93]} 1. e4 {[%emt 0:00:09]} e6 {[%emt 0:00:06]} 2. d4 {[%emt 0:00:08]} d5 {[%emt 0:00:08]} 3. Nc3 {[%emt 0:00:08]} Bb4 {[%emt 0:00:25]} 4. e5 {[%emt 0:00:10]} c5 {[%emt 0:00:19]} 5. Bd2 {[%emt 0:00:09]} Ne7 {[%emt 0:01:49]} 6. a3 {[%emt 0:00:31]} Bxc3 {[%emt 0:02:19]} 7. Bxc3 {[%emt 0:00:26]} Nbc6 {[%emt 0:02:43]} 8. Nf3 {[%emt 0:04:23]} cxd4 {[%emt 0:02:12]} 9. Nxd4 {[%emt 0:00:11]} O-O {[%emt 0:13:11] C17: French: 3 Nc3 Bb4 4 e5 c5 sidelines.} 10. Nf3 {[%emt 0:39:40]} Ng6 {[%emt 0:18:57]} 11. Bd3 {[%emt 0:05:46] [#]} (11. h4 $5 {[%cal Rh4h5]}) 11... d4 $146 {[%emt 0:03:26]} (11... Qc7 $11 {remains equal.}) ({Predecessor:} 11... Qc7 12. Bxg6 fxg6 13. Qe2 Bd7 14. O-O Rf5 15. Rfe1 Raf8 16. Rad1 g5 17. h3 Rxf3 18. gxf3 {0-1 (44) Atanasov,G (2295)-Naumkin,I (2435) Prague 1989}) 12. Bb4 $16 {[%emt 0:07:57]} Nxb4 {[%emt 0:37:17]} 13. Bxg6 {[%emt 0:00:37]} (13. axb4 $16 Qe7 14. Qd2) 13... Nc6 $1 $11 {[%emt 0:02:59]} 14. Be4 {[%emt 0:25:36] [#]} Nxe5 $1 {[%emt 0:00:11]} 15. Nxe5 {[%emt 0:00:10] aiming for f4.} ({Wrong is} 15. Bxh7+ $2 Kxh7 16. Nxd4 Kg8 $19) 15... Qa5+ {[%emt 0:00:03]} 16. c3 $1 {[%emt 0:00:07]} Qxe5 {[%emt 0:00:52]} 17. Qxd4 {[%emt 0:00:07]} Qxd4 {[%emt 0:01:18]} 18. cxd4 {[%emt 0:00:09]} Bd7 {[%emt 0:00:37]} 19. Rc1 {[%emt 0:00:44]} Rac8 {[%emt 0:00:32]} 20. Kd2 {[%emt 0:00:12]} Bc6 {[%emt 0:04:21]} (20... b6 $11 {might be stronger.}) 21. Bxc6 $14 {[%emt 0:00:56] White is more active.} bxc6 {[%emt 0:00:41]} 22. Rc5 {[%emt 0:02:13]} Rfd8 {[%emt 0:01:00]} 23. Ke3 {[%emt 0:00:44]} Rd5 {[%emt 0:02:55]} 24. Rhc1 {[%emt 0:00:35]} Rxc5 {[%emt 0:00:03]} 25. Rxc5 {[%emt 0:00:17]} Kf8 {[%emt 0:00:05] Weighted Error Value: White=0.15 (very precise) /Black=0.22 (precise)} 1/2-1/2

[Event "Swedish Championship O65 2022"]
[Site "Uppsala"]
[Date "2022.07.07"]
[Round "6.1"]
[White "Alquist, Erik"]
[Black "Gillefalk, Bjorn"]
[Result "0-1"]
[ECO "B32"]
[WhiteElo "1968"]
[BlackElo "2047"]
[Annotator "NA RC"]
[PlyCount "98"]
[EventDate "2022.07.01"]
[EventType "tourn"]
[EventCountry "SWE"]
[SourceTitle "playchess.com"]
[Source "ChessBase"]
[SourceQuality "1"]
[TimeControl "40/5400+30:1800+30"]

1. e4 {[%emt 0:00:10]} c5 {[%emt 0:00:04]} 2. Nf3 {[%emt 0:00:11]} Nc6 {[%emt 0:00:04]} 3. d4 {[%emt 0:00:10]} cxd4 {[%emt 0:00:06]} 4. Nxd4 {[%emt 0:00:08]} e5 {[%emt 0:00:06]} 5. Nb5 {[%emt 0:00:29]} d6 {[%emt 0:00:09]} 6. c4 {[%emt 0:00:28]} Be6 {[%emt 0:01:06]} 7. N5c3 {[%emt 0:03:06]} Nf6 {[%emt 0:08:47]} 8. Bg5 {[%emt 0:02:12]} Be7 {[%emt 0:20:17]} 9. Nd2 {[%emt 0:03:59]} O-O {[%emt 0:00:34]} 10. h4 {[%emt 0:08:24]} Rc8 {[%emt 0:03:10]} 11. Be2 {[%emt 0:04:02]} Nd4 {[%emt 0:01:55]} 12. b3 {[%emt 0:01:07]} Qa5 {[%emt 0:06:32]} 13. Bxf6 {[%emt 0:04:33]} Bxf6 {[%emt 0:00:26]} 14. Nb5 {[%emt 0:00:57]} Nxb5 {[%emt 0:01:39]} 15. cxb5 {[%emt 0:00:06]} d5 {[%emt 0:00:22]} 16. Kf1 {[%emt 0:09:00]} Rfd8 {[%emt 0:01:37]} 17. Qe1 {[%emt 0:02:44]} Rc2 {[%emt 0:05:08]} 18. Nf3 {[%emt 0:00:30]} Qa3 {[%emt 0:03:42]} 19. Bd3 {[%emt 0:03:24]} Rxa2 {[%emt 0:00:30]} 20. Rd1 {[%emt 0:00:30]} Be7 {[%emt 0:07:34]} 21. exd5 {[%emt 0:04:00]} Rxd5 {[%emt 0:01:52]} 22. Ng5 {[%emt 0:06:05]} Bxg5 {[%emt 0:05:59]} 23. hxg5 {[%emt 0:00:25]} g6 {[%emt 0:03:08]} 24. Bb1 {[%emt 0:06:11]} Rb2 {[%emt 0:04:30]} 25. Be4 {[%emt 0:01:59]} Rd4 {[%emt 0:02:14]} 26. g3 {[%emt 0:10:38]} Qxb3 {[%emt 0:03:18]} 27. Rxd4 {[%emt 0:02:17]} exd4 {[%emt 0:00:19]} 28. Kg2 {[%emt 0:00:27]} Qxb5 {[%emt 0:01:00]} 29. Qd1 {[%emt 0:03:10]} Qc5 {[%emt 0:02:55]} 30. Qf3 {[%emt 0:01:03]} d3 {[%emt 0:01:08]} 31. Qf6 {[%emt 0:02:31]} Rb6 {[%emt 0:01:48]} 32. Qd8+ {[%emt 0:01:38]} Qf8 {[%emt 0:01:24]} 33. Qxd3 {[%emt 0:00:41]} Qe7 {[%emt 0:01:35]} 34. Qd2 {[%emt 0:03:11]} Rd6 {[%emt 0:02:14]} 35. Qf4 {[%emt 0:00:55]} Bd5 {[%emt 0:01:59]} 36. Bxd5 {[%emt 0:05:05]} Rxd5 {[%emt 0:00:06]} 37. Qb8+ {[%emt 0:00:13]} Kg7 {[%emt 0:00:33]} 38. Qxa7 {[%emt 0:00:17]} Qe4+ {[%emt 0:00:25]} 39. Kh2 {[%emt 0:00:20]} Rxg5 {[%emt 0:00:41]} 40. Qa1+ {[%emt 0:00:39]} Qe5 {[%emt 0:02:48]} 41. Qb1 {[%emt 0:31:35]} Rh5+ {[%emt 0:31:01]} 42. Kg1 {[%emt 0:00:39]} Rxh1+ {[%emt 0:00:50]} 43. Kxh1 {[%emt 0:00:07]} b5 {[%emt 0:00:10]} 44. Kg1 {[%emt 0:01:01]} h6 {[%emt 0:00:40]} 45. Qb4 {[%emt 0:00:40]} Qd5 {[%emt 0:00:24]} 46. Qc3+ {[%emt 0:01:10]} Kh7 {[%emt 0:00:06]} 47. g4 {[%emt 0:05:46]} Qc4 {[%emt 0:01:26]} 48. Qf3 {[%emt 0:01:16]} b4 {[%emt 0:00:15]} 49. Kh2 {[%emt 0:00:29]} Kg7 {[%emt 0:04:42]} 0-1

[Event "Swedish Championship O65 2022"]
[Site "Uppsala"]
[Date "2022.07.07"]
[Round "6.2"]
[White "Lagerborg, Krister"]
[Black "Dolata, Henryk"]
[Result "1/2-1/2"]
[ECO "B20"]
[WhiteElo "2138"]
[BlackElo "2055"]
[Annotator "NA RC"]
[PlyCount "66"]
[EventDate "2022.07.01"]
[EventType "tourn"]
[EventCountry "SWE"]
[SourceTitle "playchess.com"]
[Source "ChessBase"]
[SourceQuality "1"]
[TimeControl "40/5400+30:1800+30"]

1. e4 {[%emt 0:02:41]} e6 {[%emt 0:01:38]} 2. Qe2 {[%emt 0:00:07]} c5 {[%emt 0:01:16]} 3. f4 {[%emt 0:00:13]} d6 {[%emt 0:02:12]} 4. Nf3 {[%emt 0:00:26]} Nc6 {[%emt 0:04:45]} 5. c3 {[%emt 0:00:30]} g6 {[%emt 0:00:51]} 6. g3 {[%emt 0:00:36]} Bg7 {[%emt 0:00:18]} 7. Bg2 {[%emt 0:00:45]} Nge7 {[%emt 0:00:28]} 8. O-O {[%emt 0:01:23]} O-O {[%emt 0:00:12]} 9. d3 {[%emt 0:01:27]} b6 {[%emt 0:00:45]} 10. Be3 {[%emt 0:01:36]} Bb7 {[%emt 0:02:28]} 11. Nbd2 {[%emt 0:02:44]} Rc8 {[%emt 0:21:30]} 12. Rae1 {[%emt 0:02:44]} Qd7 {[%emt 0:02:08]} 13. h4 {[%emt 0:03:07]} f5 {[%emt 0:01:19]} 14. h5 {[%emt 0:01:01]} Nd8 {[%emt 0:06:49]} 15. Nh4 {[%emt 0:02:22]} Nf7 {[%emt 0:03:27]} 16. g4 {[%emt 0:07:54]} fxg4 {[%emt 0:12:48]} 17. hxg6 {[%emt 0:06:05]} Nh6 {[%emt 0:05:24]} 18. gxh7+ {[%emt 0:00:34]} Kxh7 {[%emt 0:00:45]} 19. Bh1 {[%emt 0:06:07]} Qe8 {[%emt 0:00:39]} 20. Qh2 {[%emt 0:01:55]} Qh5 {[%emt 0:03:27]} 21. Ng2 {[%emt 0:04:22]} Qxh2+ {[%emt 0:00:54]} 22. Kxh2 {[%emt 0:00:08]} Ba6 {[%emt 0:00:10]} 23. Nc4 {[%emt 0:12:00]} d5 {[%emt 0:02:55]} 24. exd5 {[%emt 0:00:23]} exd5 {[%emt 0:00:02]} 25. Bd2 {[%emt 0:05:55]} Nef5 {[%emt 0:01:16]} 26. Ne5 {[%emt 0:03:08]} Rfe8 {[%emt 0:03:42]} 27. Ne3 {[%emt 0:04:03]} Bxe5 {[%emt 0:06:05]} 28. fxe5 {[%emt 0:00:32]} Bxd3 {[%emt 0:01:39]} 29. Rf4 {[%emt 0:02:07]} g3+ {[%emt 0:01:20]} 30. Kh3 {[%emt 0:00:39]} Rxe5 {[%emt 0:05:48]} 31. Nxd5 {[%emt 0:01:47]} Rxe1 {[%emt 0:01:24]} 32. Bxe1 {[%emt 0:00:02]} Kg7 {[%emt 0:01:27]} 33. Bxg3 {[%emt 0:00:46]} Nxg3 {[%emt 0:00:33]} 1/2-1/2

[Event "Swedish Championship O65 2022"]
[Site "Uppsala"]
[Date "2022.07.07"]
[Round "6.3"]
[White "Bergstrom, Rolf"]
[Black "Soderberg, Per"]
[Result "0-1"]
[ECO "B22"]
[WhiteElo "2202"]
[BlackElo "2111"]
[Annotator "RC"]
[PlyCount "62"]
[EventDate "2022.07.01"]
[EventType "tourn"]
[EventCountry "SWE"]
[SourceTitle "playchess.com"]
[Source "ChessBase"]
[SourceQuality "1"]
[TimeControl "40/5400+30:1800+30"]

1. e4 {[%emt 0:00:12]} c5 {[%emt 0:00:07]} 2. c3 {[%emt 0:00:27]} e5 {[%emt 0:02:17]} 3. Nf3 {[%emt 0:01:27]} Nc6 {[%emt 0:00:05]} 4. Bc4 {[%emt 0:00:41]} Qc7 {[%emt 0:00:06]} 5. O-O {[%emt 0:01:19]} Be7 {[%emt 0:02:29]} 6. Bb3 {[%emt 0:03:49]} Nf6 {[%emt 0:01:10]} 7. d3 {[%emt 0:03:01]} O-O {[%emt 0:00:24]} 8. Bg5 {[%emt 0:00:52]} d6 {[%emt 0:01:29]} 9. Nbd2 {[%emt 0:02:00]} b5 {[%emt 0:03:55]} 10. Re1 {[%emt 0:02:35]} a5 {[%emt 0:02:12]} 11. a4 {[%emt 0:01:12]} b4 {[%emt 0:00:29]} 12. Nc4 {[%emt 0:02:33]} Be6 {[%emt 0:03:03]} 13. Ne3 {[%emt 0:04:18]} Rab8 {[%emt 0:04:15]} 14. Bc4 {[%emt 0:07:33]} Kh8 {[%emt 0:11:01]} 15. Bh4 {[%emt 0:20:01]} Nd8 {[%emt 0:13:13]} 16. Bxf6 {[%emt 0:02:03]} Bxf6 {[%emt 0:00:48]} 17. Nd5 {[%emt 0:00:15]} Bxd5 {[%emt 0:00:34]} 18. Bxd5 {[%emt 0:00:25]} Ne6 {[%emt 0:01:01]} 19. g3 {[%emt 0:01:24]} g6 {[%emt 0:00:59]} 20. Nd2 {[%emt 0:01:02]} Bg7 {[%emt 0:05:04]} 21. Nc4 {[%emt 0:02:59]} h6 {[%emt 0:01:35]} 22. Qg4 {[%emt 0:03:47]} Ng5 {[%emt 0:00:57]} 23. Qe2 {[%emt 0:10:47]} f5 {[%emt 0:03:36]} 24. Rf1 {[%emt 0:00:22]} f4 {[%emt 0:06:08]} 25. h4 {[%emt 0:13:10]} f3 {[%emt 0:04:47]} 26. Qd1 {[%emt 0:01:20]} Nh3+ {[%emt 0:00:27]} 27. Kh2 {[%emt 0:01:51]} Qd7 {[%emt 0:00:34]} 28. Ne3 {[%emt 0:01:00]} Nf4 {[%emt 0:03:30]} 29. g4 {[%emt 0:03:09]} h5 {[%emt 0:02:24]} 30. Rh1 {[%emt 0:08:00]} Ne2 {[%emt 0:02:13]} 31. Kh3 {[%emt 0:01:51]} Bh6 {[%emt 0:01:22]} 0-1

[Event "Swedish Championship O65 2022"]
[Site "Uppsala"]
[Date "2022.07.07"]
[Round "6.4"]
[White "Bellon Lopez, Juan Manuel"]
[Black "Carlsson, Ingvar"]
[Result "1-0"]
[ECO "A45"]
[WhiteElo "2330"]
[BlackElo "2030"]
[Annotator "RC"]
[PlyCount "103"]
[EventDate "2022.07.01"]
[EventType "tourn"]
[EventCountry "SWE"]
[SourceTitle "playchess.com"]
[Source "ChessBase"]
[SourceQuality "1"]
[TimeControl "40/5400+30:1800+30"]

1. d4 {[%emt 0:00:02]} Nf6 {[%emt 0:00:10]} 2. Bg5 {[%emt 0:00:37]} e6 {[%emt 0:00:16]} 3. e3 {[%emt 0:01:06]} h6 {[%emt 0:00:44]} 4. Bh4 {[%emt 0:02:32]} Be7 {[%emt 0:02:33]} 5. Nd2 {[%emt 0:01:23]} b6 {[%emt 0:04:13]} 6. Qf3 {[%emt 0:05:15]} Nc6 {[%emt 0:01:07]} 7. c3 {[%emt 0:00:25]} Bb7 {[%emt 0:00:35]} 8. Bxf6 {[%emt 0:02:33]} Bxf6 {[%emt 0:00:17]} 9. O-O-O {[%emt 0:02:46]} Qe7 {[%emt 0:18:49]} 10. Ne4 {[%emt 0:01:53]} O-O-O {[%emt 0:00:23]} 11. Nxf6 {[%emt 0:01:01]} gxf6 {[%emt 0:02:21]} 12. Qh5 {[%emt 0:00:06]} f5 {[%emt 0:07:29]} 13. Nh3 {[%emt 0:02:27]} Qf6 {[%emt 0:04:04]} 14. Be2 {[%emt 0:05:17]} Ne7 {[%emt 0:02:13]} 15. Bf3 {[%emt 0:00:21]} Bxf3 {[%emt 0:13:46]} 16. Qxf3 {[%emt 0:00:10]} d5 {[%emt 0:00:08]} 17. Nf4 {[%emt 0:02:07]} Ng6 {[%emt 0:01:20]} 18. Nd3 {[%emt 0:04:29]} Qe7 {[%emt 0:03:33]} 19. g3 {[%emt 0:02:52]} Kb8 {[%emt 0:03:06]} 20. h4 {[%emt 0:11:57]} Qe8 {[%emt 0:02:37]} 21. Kb1 {[%emt 0:04:18]} Qb5 {[%emt 0:04:51]} 22. Rd2 {[%emt 0:03:10]} Rc8 {[%emt 0:03:43]} 23. Rc1 {[%emt 0:01:52]} h5 {[%emt 0:11:45]} 24. b3 {[%emt 0:02:49]} a5 {[%emt 0:03:02]} 25. Ka1 {[%emt 0:03:09]} Ka7 {[%emt 0:06:09]} 26. c4 {[%emt 0:13:35]} Qd7 {[%emt 0:00:31]} 27. c5 {[%emt 0:05:28]} b5 {[%emt 0:00:23]} 28. c6 {[%emt 0:03:34]} Qd6 {[%emt 0:00:06]} 29. Rc5 {[%emt 0:01:26]} Rb8 {[%emt 0:00:48]} 30. Rdc2 {[%emt 0:01:12]} Rb6 {[%emt 0:01:06]} 31. Qe2 {[%emt 0:03:36]} e5 {[%emt 0:01:56]} 32. dxe5 {[%emt 0:02:57]} Nxe5 {[%emt 0:00:09]} 33. Qd2 {[%emt 0:02:09]} Nxc6 {[%emt 0:01:30]} 34. Nf4 {[%emt 0:00:25]} d4 {[%emt 0:00:50]} 35. exd4 {[%emt 0:05:02]} Nxd4 {[%emt 0:00:20]} 36. Qxa5+ {[%emt 0:02:31]} Kb8 {[%emt 0:00:08]} 37. R2c3 {[%emt 0:01:18]} Nxb3+ {[%emt 0:00:17]} 38. axb3 {[%emt 0:00:19]} Ra6 {[%emt 0:00:11]} 39. Rxb5+ {[%emt 0:00:06]} Ka7 {[%emt 0:00:59]} 40. Nd5 {[%emt 0:00:31]} Rxa5+ {[%emt 0:00:18]} 41. Rxa5+ {[%emt 0:30:11]} Kb8 {[%emt 0:02:05]} 42. Rb5+ {[%emt 0:00:00]} Kc8 {[%emt 0:21:49]} 43. Rxc7+ {[%emt 0:00:00]} Qxc7 {[%emt 0:00:19]} 44. Nxc7 {[%emt 0:00:00]} Kxc7 {[%emt 0:00:08]} 45. Rxf5 {[%emt 0:00:00]} Rh7 {[%emt 0:00:16]} 46. Kb2 {[%emt 0:00:00]} Kd6 {[%emt 0:00:12]} 47. b4 {[%emt 0:00:00]} Ke6 {[%emt 0:00:19]} 48. Rc5 {[%emt 0:00:00]} f5 {[%emt 0:00:14]} 49. Kb3 {[%emt 0:00:00]} Rf7 {[%emt 0:01:39]} 50. b5 {[%emt 0:00:00]} f4 {[%emt 0:00:49]} 51. Kb4 {[%emt 0:00:00]} fxg3 {[%emt 0:00:16]} 52. fxg3 {[%emt 0:00:00]} 1-0